[Event "CZE-ch Youth G10-G12-G14 2022"]
[Site "Luhacovice"]
[Date "2022.03.15"]
[Round "5.36"]
[White "Kavanova, Anezka"]
[Black "Reznickova, Sibyla"]
[Result "1/2-1/2"]
[ECO "C50"]
[WhiteElo "1089"]
[BlackElo "1304"]
[Annotator "NA"]
[PlyCount "90"]
[EventDate "2022.03.12"]
[EventType "swiss"]
[EventCountry "CZE"]
[SourceTitle "playchess.com"]
[Source "ChessBase"]
[SourceQuality "1"]
[TimeControl "40/5400+30:1800+30"]

1. e4 {[%emt 0:00:04]} e5 {[%emt 0:00:17]} 2. Nc3 {[%emt 0:00:04]} Bc5 {[%emt 0:01:02]} 3. Nf3 {[%emt 0:00:34]} Nc6 {[%emt 0:00:45]} 4. Bc4 {[%emt 0:00:12]} d6 {[%emt 0:00:57]} 5. h3 {[%emt 0:00:58]} Be6 {[%emt 0:01:20]} 6. Bb3 {[%emt 0:00:08]} Nf6 {[%emt 0:01:25]} 7. d3 {[%emt 0:00:14]} h6 {[%emt 0:03:27]} 8. O-O {[%emt 0:00:32]} O-O {[%emt 0:01:21]} 9. Be3 {[%emt 0:05:12]} Bb6 {[%emt 0:05:18]} 10. d4 {[%emt 0:02:43]} d5 {[%emt 0:05:15]} 11. exd5 {[%emt 0:05:40]} Nxd5 {[%emt 0:01:49]} 12. Nxd5 {[%emt 0:01:08]} Bxd5 {[%emt 0:01:51]} 13. dxe5 {[%emt 0:02:35]} Bxb3 {[%emt 0:04:20]} 14. axb3 {[%emt 0:00:21]} Re8 {[%emt 0:05:15]} 15. Bf4 {[%emt 0:02:50]} Nb4 {[%emt 0:02:56]} 16. Qe2 {[%emt 0:04:47]} f6 {[%emt 0:03:40]} 17. Rfd1 {[%emt 0:02:55]} Qe7 {[%emt 0:02:54]} 18. Qc4+ {[%emt 0:01:12]} Kh7 {[%emt 0:02:55]} 19. exf6 {[%emt 0:02:11]} Qxf6 {[%emt 0:06:51]} 20. Qxb4 {[%emt 0:03:33]} Re2 {[%emt 0:03:58]} 21. Be3 {[%emt 0:09:35]} Bxe3 {[%emt 0:03:43]} 22. Qe4+ {[%emt 0:01:42]} Qg6 {[%emt 0:05:36]} 23. Qxg6+ {[%emt 0:00:44]} Kxg6 {[%emt 0:00:06]} 24. fxe3 {[%emt 0:00:09]} Rxc2 {[%emt 0:01:41]} 25. Rab1 {[%emt 0:03:32]} Re8 {[%emt 0:00:59]} 26. Re1 {[%emt 0:01:35]} Kf6 {[%emt 0:02:12]} 27. e4 {[%emt 0:02:31]} Rc5 {[%emt 0:02:38]} 28. e5+ {[%emt 0:00:57]} Kf5 {[%emt 0:00:51]} 29. Rbd1 {[%emt 0:05:26]} g5 {[%emt 0:03:38]} 30. e6 {[%emt 0:04:27]} Kf6 {[%emt 0:03:22]} 31. Nd2 {[%emt 0:11:43]} Rc2 {[%emt 0:06:18]} 32. Ne4+ {[%emt 0:01:56]} Kf5 {[%emt 0:02:39]} 33. Rb1 {[%emt 0:04:29]} Rxe6 {[%emt 0:02:54]} 34. Ng3+ {[%emt 0:01:20]} Kf6 {[%emt 0:00:43]} 35. Nh5+ {[%emt 0:03:51]} Kf7 {[%emt 0:01:39]} 36. Rxe6 {[%emt 0:02:01]} Kxe6 {[%emt 0:00:21]} 37. Kf1 {[%emt 0:00:54]} Kf5 {[%emt 0:00:58]} 38. Ng3+ {[%emt 0:00:28]} Kf4 {[%emt 0:01:24]} 39. Ne2+ {[%emt 0:00:24]} Ke3 {[%emt 0:00:58]} 40. Ng3 {[%emt 0:02:59]} Kf4 {[%emt 0:01:35]} 41. Ne2+ {[%emt 0:32:18]} Ke3 {[%emt 0:30:18]} 42. Nc3 {[%emt 0:00:13]} Kf4 {[%emt 0:02:21]} 43. Nd1 {[%emt 0:03:02]} Kg3 {[%emt 0:04:15]} 44. Ne3 {[%emt 0:00:52]} Rf2+ {[%emt 0:01:23]} 45. Ke1 {[%emt 0:02:02]} h5 {[%emt 0:01:17]} 1/2-1/2

[Event "CZE-ch Youth G10-G12-G14 2022"]
[Site "Luhacovice"]
[Date "2022.03.15"]
[Round "5.37"]
[White "Brezikova, Beata"]
[Black "Lackova, Ludmila"]
[Result "1-0"]
[ECO "C41"]
[WhiteElo "1266"]
[BlackElo "1167"]
[Annotator "NA"]
[PlyCount "113"]
[EventDate "2022.03.12"]
[EventType "swiss"]
[EventCountry "CZE"]
[SourceTitle "playchess.com"]
[Source "ChessBase"]
[SourceQuality "1"]
[TimeControl "40/5400+30:1800+30"]

1. e4 {[%emt 0:00:03]} e5 {[%emt 0:00:06]} 2. Nf3 {[%emt 0:00:03]} d6 {[%emt 0:00:11]} 3. d4 {[%emt 0:01:30]} exd4 {[%emt 0:00:29]} 4. Nxd4 {[%emt 0:00:11]} Nf6 {[%emt 0:00:12]} 5. Nc3 {[%emt 0:00:24]} Be7 {[%emt 0:00:26]} 6. Be3 {[%emt 0:01:32]} O-O {[%emt 0:00:44]} 7. Be2 {[%emt 0:02:02]} Nc6 {[%emt 0:02:28]} 8. O-O {[%emt 0:02:29]} Ne5 {[%emt 0:01:21]} 9. h3 {[%emt 0:07:09]} Be6 {[%emt 0:01:25]} 10. Rb1 {[%emt 0:14:16]} a6 {[%emt 0:04:00]} 11. a3 {[%emt 0:05:37]} Rb8 {[%emt 0:06:22]} 12. f4 {[%emt 0:08:18]} Nc6 {[%emt 0:07:24]} 13. Nxc6 {[%emt 0:04:47]} bxc6 {[%emt 0:00:24]} 14. Bxa6 {[%emt 0:00:37]} Nd7 {[%emt 0:10:21]} 15. f5 {[%emt 0:03:35]} Bxf5 {[%emt 0:05:28]} 16. exf5 {[%emt 0:02:11]} Bf6 {[%emt 0:00:33]} 17. Bd4 {[%emt 0:03:19]} Ne5 {[%emt 0:01:43]} 18. Ne4 {[%emt 0:06:11]} Nd7 {[%emt 0:01:52]} 19. Nxf6+ {[%emt 0:01:56]} Nxf6 {[%emt 0:00:09]} 20. Re1 {[%emt 0:03:38]} c5 {[%emt 0:01:44]} 21. Bc3 {[%emt 0:02:22]} d5 {[%emt 0:01:48]} 22. Be2 {[%emt 0:05:50]} d4 {[%emt 0:01:54]} 23. Bd2 {[%emt 0:00:51]} Qd5 {[%emt 0:01:38]} 24. g4 {[%emt 0:02:40]} Qd6 {[%emt 0:02:39]} 25. Bf1 {[%emt 0:04:32]} Nd5 {[%emt 0:03:08]} 26. Qf3 {[%emt 0:02:26]} Nf6 {[%emt 0:00:45]} 27. Bf4 {[%emt 0:01:48]} Qd7 {[%emt 0:00:27]} 28. Bg2 {[%emt 0:01:23]} Rb6 {[%emt 0:01:28]} 29. Re5 {[%emt 0:01:22]} c4 {[%emt 0:01:17]} 30. Rc5 {[%emt 0:00:44]} c3 {[%emt 0:01:08]} 31. Rxc7 {[%emt 0:01:04]} Qa4 {[%emt 0:00:58]} 32. b3 {[%emt 0:02:03]} Qxa3 {[%emt 0:00:48]} 33. Rc4 {[%emt 0:00:42]} Qa2 {[%emt 0:00:38]} 34. Qd1 {[%emt 0:00:26]} d3 {[%emt 0:05:13]} 35. cxd3 {[%emt 0:02:56]} Qa6 {[%emt 0:03:53]} 36. Qc2 {[%emt 0:02:13]} Rc8 {[%emt 0:01:05]} 37. Qxc3 {[%emt 0:00:57]} Rf8 {[%emt 0:04:12]} 38. Ra1 {[%emt 0:01:21]} Qb5 {[%emt 0:00:28]} 39. b4 {[%emt 0:02:39]} Qe8 {[%emt 0:01:29]} 40. Ra8 {[%emt 0:00:23]} Qe7 {[%emt 0:01:51]} 41. Rxf8+ {[%emt 0:30:22]} Kxf8 {[%emt 0:30:35]} 42. Rc8+ {[%emt 0:00:28]} Ne8 {[%emt 0:00:23]} 43. Bc6 {[%emt 0:00:00]} Rxc6 {[%emt 0:00:00]} 44. Rxc6 {[%emt 0:00:00]} Qa7+ {[%emt 0:00:00]} 45. Qc5+ {[%emt 0:00:00]} Qxc5+ {[%emt 0:00:00]} 46. bxc5 {[%emt 0:00:00]} Nf6 {[%emt 0:00:00]} 47. Bg5 {[%emt 0:00:00]} Ke7 {[%emt 0:00:00]} 48. Bxf6+ {[%emt 0:00:00]} gxf6 {[%emt 0:00:00]} 49. Rd6 {[%emt 0:00:00]} h6 {[%emt 0:00:00]} 50. Rd4 {[%emt 0:00:00]} Ke8 {[%emt 0:00:00]} 51. c6 {[%emt 0:00:00]} h5 {[%emt 0:00:00]} 52. c7 {[%emt 0:00:00]} Kf8 {[%emt 0:00:00]} 53. c8=Q+ {[%emt 0:00:00]} Kg7 {[%emt 0:00:00]} 54. gxh5 {[%emt 0:00:00]} Kh6 {[%emt 0:00:00]} 55. Rg4 {[%emt 0:00:00]} Kh7 {[%emt 0:00:00]} 56. h6 {[%emt 0:00:00]} Kxh6 {[%emt 0:00:00]} 57. Qh8# {[%emt 0:00:00]} 1-0

[Event "CZE-ch Youth G10-G12-G14 2022"]
[Site "Luhacovice"]
[Date "2022.03.15"]
[Round "5.38"]
[White "Dominikova, Denisa"]
[Black "Vacekova Anita"]
[Result "1/2-1/2"]
[ECO "C93"]
[WhiteElo "1254"]
[BlackElo "1000"]
[Annotator "NA"]
[PlyCount "109"]
[EventDate "2022.03.12"]
[EventType "swiss"]
[EventCountry "CZE"]
[SourceTitle "playchess.com"]
[Source "ChessBase"]
[SourceQuality "1"]
[TimeControl "40/5400+30:1800+30"]

1. e4 {[%emt 0:00:06]} e5 {[%emt 0:00:02]} 2. Nf3 {[%emt 0:00:20]} Nc6 {[%emt 0:00:04]} 3. Bb5 {[%emt 0:00:33]} a6 {[%emt 0:00:05]} 4. Ba4 {[%emt 0:00:31]} Nf6 {[%emt 0:00:05]} 5. O-O {[%emt 0:00:37]} Be7 {[%emt 0:00:23]} 6. Re1 {[%emt 0:00:49]} b5 {[%emt 0:00:07]} 7. Bb3 {[%emt 0:00:53]} O-O {[%emt 0:00:13]} 8. c3 {[%emt 0:01:12]} d6 {[%emt 0:02:34]} 9. h3 {[%emt 0:01:26]} h6 {[%emt 0:04:14]} 10. d4 {[%emt 0:03:15]} Nh7 {[%emt 0:03:20]} 11. Bd5 {[%emt 0:04:31]} Bb7 {[%emt 0:06:32]} 12. dxe5 {[%emt 0:04:03]} Qc8 {[%emt 0:04:00]} 13. Bf4 {[%emt 0:07:17]} Nxe5 {[%emt 0:05:32]} 14. Nxe5 {[%emt 0:04:17]} dxe5 {[%emt 0:02:17]} 15. Bxe5 {[%emt 0:02:50]} Rd8 {[%emt 0:02:50]} 16. Qb3 {[%emt 0:11:08]} Bxd5 {[%emt 0:01:31]} 17. exd5 {[%emt 0:00:41]} Bc5 {[%emt 0:11:48]} 18. Bg3 {[%emt 0:17:03]} Nf6 {[%emt 0:03:45]} 19. Rd1 {[%emt 0:05:32]} Ne4 {[%emt 0:06:37]} 20. Rd3 {[%emt 0:02:36]} Nxg3 {[%emt 0:01:23]} 21. Rxg3 {[%emt 0:00:29]} Qf5 {[%emt 0:00:38]} 22. Rf3 {[%emt 0:01:56]} Qxd5 {[%emt 0:00:42]} 23. Qxd5 {[%emt 0:01:46]} Rxd5 {[%emt 0:00:11]} 24. Na3 {[%emt 0:01:07]} Re8 {[%emt 0:05:10]} 25. b4 {[%emt 0:03:01]} Bb6 {[%emt 0:01:24]} 26. c4 {[%emt 0:01:51]} bxc4 {[%emt 0:03:44]} 27. Nxc4 {[%emt 0:00:27]} Bd4 {[%emt 0:01:15]} 28. Rc1 {[%emt 0:01:19]} c5 {[%emt 0:08:30]} 29. Nb6 {[%emt 0:02:53]} Rde5 {[%emt 0:01:24]} 30. bxc5 {[%emt 0:01:02]} Bxc5 {[%emt 0:01:58]} 31. Nd7 {[%emt 0:01:17]} Re1+ {[%emt 0:00:09]} 32. Rxe1 {[%emt 0:00:08]} Rxe1+ {[%emt 0:00:15]} 33. Kh2 {[%emt 0:00:14]} Bd6+ {[%emt 0:02:58]} 34. g3 {[%emt 0:00:34]} Re7 {[%emt 0:03:13]} 35. Nb6 {[%emt 0:00:39]} Re2 {[%emt 0:02:35]} 36. a3 {[%emt 0:03:16]} Bc5 {[%emt 0:00:41]} 37. Nc4 {[%emt 0:01:05]} Rxf2+ {[%emt 0:01:06]} 38. Rxf2 {[%emt 0:00:09]} Bxf2 {[%emt 0:00:06]} 39. Kg2 {[%emt 0:00:39]} Bc5 {[%emt 0:00:12]} 40. Kf3 {[%emt 0:01:01]} h5 {[%emt 0:01:59]} 41. Ke4 {[%emt 0:31:45]} Bf2 {[%emt 0:31:54]} 42. g4 {[%emt 0:00:55]} hxg4 {[%emt 0:01:44]} 43. hxg4 {[%emt 0:00:08]} Kh7 {[%emt 0:03:18]} 44. g5 {[%emt 0:05:17]} Bc5 {[%emt 0:01:58]} 45. a4 {[%emt 0:01:34]} f6 {[%emt 0:03:04]} 46. gxf6 {[%emt 0:01:19]} gxf6 {[%emt 0:00:24]} 47. Kf5 {[%emt 0:00:46]} Kg7 {[%emt 0:00:12]} 48. Na5 {[%emt 0:06:10]} Bb4 {[%emt 0:01:46]} 49. Nc6 {[%emt 0:01:28]} Bc3 {[%emt 0:00:33]} 50. a5 {[%emt 0:00:00]} Kf7 {[%emt 0:00:00]} 51. Nb8 {[%emt 0:00:00]} Bxa5 {[%emt 0:00:00]} 52. Nxa6 {[%emt 0:00:00]} Ke7 {[%emt 0:00:00]} 53. Nc5 {[%emt 0:00:00]} Bc3 {[%emt 0:00:00]} 54. Ne4 {[%emt 0:00:00]} Be5 {[%emt 0:00:00]} 55. Nxf6 {[%emt 0:00:00]} 1/2-1/2

[Event "CZE-ch Youth G10-G12-G14 2022"]
[Site "Luhacovice"]
[Date "2022.03.15"]
[Round "5.39"]
[White "Dorazilova, Kristyna"]
[Black "Kaplanova, Dominika"]
[Result "1-0"]
[ECO "B12"]
[WhiteElo "1240"]
[BlackElo "1269"]
[Annotator "NA"]
[PlyCount "120"]
[EventDate "2022.03.12"]
[EventType "swiss"]
[EventCountry "CZE"]
[SourceTitle "playchess.com"]
[Source "ChessBase"]
[SourceQuality "1"]
[TimeControl "40/5400+30:1800+30"]

1. e4 {[%emt 0:00:04]} c6 {[%emt 0:00:06]} 2. d4 {[%emt 0:00:04]} d5 {[%emt 0:00:04]} 3. f3 {[%emt 0:00:15]} e6 {[%emt 0:02:14]} 4. Nc3 {[%emt 0:00:16]} Bb4 {[%emt 0:01:43]} 5. Nge2 {[%emt 0:00:16]} Ne7 {[%emt 0:06:46]} 6. a3 {[%emt 0:01:34]} Ba5 {[%emt 0:01:04]} 7. g3 {[%emt 0:01:28]} Nd7 {[%emt 0:04:03]} 8. Bg2 {[%emt 0:01:17]} Ng6 {[%emt 0:03:00]} 9. O-O {[%emt 0:00:50]} O-O {[%emt 0:00:43]} 10. e5 {[%emt 0:02:27]} Bb6 {[%emt 0:01:45]} 11. Kh1 {[%emt 0:00:44]} c5 {[%emt 0:10:26]} 12. f4 {[%emt 0:02:54]} Nb8 {[%emt 0:08:56]} 13. Be3 {[%emt 0:02:41]} cxd4 {[%emt 0:02:12]} 14. Bxd4 {[%emt 0:00:18]} Nc6 {[%emt 0:00:51]} 15. Na4 {[%emt 0:06:11]} Bxd4 {[%emt 0:08:39]} 16. Nxd4 {[%emt 0:00:08]} Bd7 {[%emt 0:03:47]} 17. Nc3 {[%emt 0:02:32]} Qb6 {[%emt 0:03:06]} 18. Nb3 {[%emt 0:01:51]} a5 {[%emt 0:06:40]} 19. Na4 {[%emt 0:03:47]} Qc7 {[%emt 0:03:57]} 20. Qd2 {[%emt 0:02:56]} Rfc8 {[%emt 0:06:44]} 21. Nc3 {[%emt 0:05:35]} Qb6 {[%emt 0:07:38]} 22. Qf2 {[%emt 0:02:31]} Qxf2 {[%emt 0:04:11]} 23. Rxf2 {[%emt 0:00:03]} Nce7 {[%emt 0:01:09]} 24. Nd4 {[%emt 0:03:21]} Rc4 {[%emt 0:02:12]} 25. Rd1 {[%emt 0:01:40]} Rac8 {[%emt 0:01:31]} 26. Bf1 {[%emt 0:00:48]} R4c7 {[%emt 0:00:55]} 27. Rdd2 {[%emt 0:04:11]} a4 {[%emt 0:06:35]} 28. Kg1 {[%emt 0:03:47]} Rc5 {[%emt 0:01:57]} 29. Bd3 {[%emt 0:03:21]} Nf8 {[%emt 0:00:45]} 30. Kf1 {[%emt 0:01:11]} Rxc3 {[%emt 0:00:22]} 31. bxc3 {[%emt 0:00:26]} Rxc3 {[%emt 0:00:04]} 32. Bb5 {[%emt 0:01:34]} Bxb5+ {[%emt 0:00:16]} 33. Nxb5 {[%emt 0:00:07]} Rc5 {[%emt 0:00:26]} 34. Nd4 {[%emt 0:01:03]} Nd7 {[%emt 0:00:35]} 35. Rd3 {[%emt 0:00:31]} Nb6 {[%emt 0:00:27]} 36. Rff3 {[%emt 0:01:08]} Nc4 {[%emt 0:00:29]} 37. Ke2 {[%emt 0:00:44]} Nc6 {[%emt 0:00:23]} 38. Nxc6 {[%emt 0:00:53]} bxc6 {[%emt 0:00:27]} 39. h4 {[%emt 0:02:44]} Rb5 {[%emt 0:00:45]} 40. Rc3 {[%emt 0:01:46]} Rb1 {[%emt 0:01:12]} 41. Rfd3 {[%emt 0:31:26]} Kf8 {[%emt 0:31:10]} 42. Rd1 {[%emt 0:01:08]} Rb2 {[%emt 0:00:20]} 43. Ra1 {[%emt 0:01:45]} Ke7 {[%emt 0:00:32]} 44. h5 {[%emt 0:00:52]} Kd7 {[%emt 0:00:35]} 45. Rd1 {[%emt 0:00:26]} Kc7 {[%emt 0:00:15]} 46. Ra1 {[%emt 0:01:24]} c5 {[%emt 0:00:42]} 47. g4 {[%emt 0:00:53]} Kb6 {[%emt 0:00:24]} 48. g5 {[%emt 0:01:46]} Kb5 {[%emt 0:00:41]} 49. Kd1 {[%emt 0:00:55]} Na5 {[%emt 0:00:37]} 50. Kc1 {[%emt 0:01:16]} d4 {[%emt 0:00:00]} 51. Kxb2 {[%emt 0:00:00]} dxc3+ {[%emt 0:00:00]} 52. Kxc3 {[%emt 0:00:00]} Kc6 {[%emt 0:00:00]} 53. Rd1 {[%emt 0:00:00]} Nb7 {[%emt 0:00:00]} 54. Rd2 {[%emt 0:00:00]} Kc7 {[%emt 0:00:00]} 55. g6 {[%emt 0:00:00]} fxg6 {[%emt 0:00:00]} 56. Rg2 {[%emt 0:00:00]} Kc6 {[%emt 0:00:00]} 57. hxg6 {[%emt 0:00:00]} h6 {[%emt 0:00:00]} 58. Rh2 {[%emt 0:00:00]} Kd5 {[%emt 0:00:00]} 59. Rxh6 {[%emt 0:00:00]} Ke4 {[%emt 0:00:00]} 60. Rh7 {[%emt 0:00:00]} Kxf4 {[%emt 0:00:00]} 1-0

[Event "CZE-ch Youth G10-G12-G14 2022"]
[Site "Luhacovice"]
[Date "2022.03.15"]
[Round "5.40"]
[White "Archlebova, Stela"]
[Black "Myskova, Veronika"]
[Result "1-0"]
[ECO "B31"]
[WhiteElo "1121"]
[BlackElo "1117"]
[Annotator "NA"]
[PlyCount "83"]
[EventDate "2022.03.12"]
[EventType "swiss"]
[EventCountry "CZE"]
[SourceTitle "playchess.com"]
[Source "ChessBase"]
[SourceQuality "1"]
[TimeControl "40/5400+30:1800+30"]

1. e4 {[%emt 0:00:04]} c5 {[%emt 0:00:10]} 2. Nf3 {[%emt 0:00:23]} Nc6 {[%emt 0:00:26]} 3. Bb5 {[%emt 0:00:25]} g6 {[%emt 0:00:58]} 4. O-O {[%emt 0:02:56]} Bg7 {[%emt 0:01:26]} 5. d3 {[%emt 0:02:06]} Nf6 {[%emt 0:02:45]} 6. Nc3 {[%emt 0:01:17]} O-O {[%emt 0:02:01]} 7. Be3 {[%emt 0:02:44]} d6 {[%emt 0:02:12]} 8. h3 {[%emt 0:00:42]} Be6 {[%emt 0:04:22]} 9. Qd2 {[%emt 0:01:33]} Nd4 {[%emt 0:00:31]} 10. Nxd4 {[%emt 0:02:34]} cxd4 {[%emt 0:00:22]} 11. Bxd4 {[%emt 0:00:28]} Qc8 {[%emt 0:01:46]} 12. Kh2 {[%emt 0:01:32]} Ng4+ {[%emt 0:02:15]} 13. hxg4 {[%emt 0:01:24]} Bxd4 {[%emt 0:00:19]} 14. Nd5 {[%emt 0:05:42]} Qd8 {[%emt 0:03:53]} 15. c3 {[%emt 0:02:01]} Bg7 {[%emt 0:01:51]} 16. Qe2 {[%emt 0:04:13]} Kh8 {[%emt 0:01:47]} 17. Rh1 {[%emt 0:00:58]} a6 {[%emt 0:03:27]} 18. Ba4 {[%emt 0:00:19]} b5 {[%emt 0:00:05]} 19. Bb3 {[%emt 0:00:09]} Rb8 {[%emt 0:02:01]} 20. Nb4 {[%emt 0:01:34]} Be5+ {[%emt 0:03:31]} 21. Kg1 {[%emt 0:00:34]} Bd7 {[%emt 0:01:43]} 22. Qe3 {[%emt 0:03:10]} Bxg4 {[%emt 0:06:38]} 23. Nc6 {[%emt 0:00:34]} Qe8 {[%emt 0:04:15]} 24. Nxb8 {[%emt 0:00:44]} Qxb8 {[%emt 0:00:46]} 25. Qh6 {[%emt 0:00:45]} Bh5 {[%emt 0:00:07]} 26. Bd1 {[%emt 0:00:39]} Bg7 {[%emt 0:00:51]} 27. Qf4 {[%emt 0:00:36]} Bxd1 {[%emt 0:01:09]} 28. Rxd1 {[%emt 0:01:42]} Qc8 {[%emt 0:03:12]} 29. Qh4 {[%emt 0:00:30]} h6 {[%emt 0:00:30]} 30. Qxe7 {[%emt 0:00:30]} Qg4 {[%emt 0:00:30]} 31. f3 {[%emt 0:02:06]} Qf4 {[%emt 0:01:57]} 32. Qh4 {[%emt 0:01:58]} Qxh4 {[%emt 0:02:05]} 33. Rxh4 {[%emt 0:00:06]} f5 {[%emt 0:00:44]} 34. exf5 {[%emt 0:01:07]} Rxf5 {[%emt 0:00:26]} 35. Re4 {[%emt 0:00:17]} a5 {[%emt 0:00:50]} 36. Re8+ {[%emt 0:00:52]} Kh7 {[%emt 0:01:03]} 37. Re7 {[%emt 0:01:34]} b4 {[%emt 0:01:43]} 38. cxb4 {[%emt 0:00:28]} axb4 {[%emt 0:00:05]} 39. Rb7 {[%emt 0:00:25]} Rf4 {[%emt 0:00:23]} 40. Re1 {[%emt 0:00:39]} Kg8 {[%emt 0:01:48]} 41. Re8+ {[%emt 0:30:52]} Bf8 {[%emt 0:30:42]} 42. Reb8 {[%emt 0:01:45]} 1-0

[Event "CZE-ch Youth G10-G12-G14 2022"]
[Site "Luhacovice"]
[Date "2022.03.15"]
[Round "5.41"]
[White "Lipovska Viktorie"]
[Black "Zilava Lucie"]
[Result "1-0"]
[ECO "C42"]
[WhiteElo "1189"]
[BlackElo "1059"]
[Annotator "NA"]
[PlyCount "117"]
[EventDate "2022.03.12"]
[EventType "swiss"]
[EventCountry "CZE"]
[SourceTitle "playchess.com"]
[Source "ChessBase"]
[SourceQuality "1"]
[TimeControl "40/5400+30:1800+30"]

1. e4 {[%emt 0:00:05]} e5 {[%emt 0:00:07]} 2. Nf3 {[%emt 0:00:06]} Nf6 {[%emt 0:00:03]} 3. Nxe5 {[%emt 0:00:09]} d6 {[%emt 0:00:07]} 4. Nf3 {[%emt 0:00:21]} Nxe4 {[%emt 0:00:11]} 5. d3 {[%emt 0:00:44]} Nf6 {[%emt 0:01:27]} 6. Nc3 {[%emt 0:00:41]} Nc6 {[%emt 0:02:56]} 7. Qe2+ {[%emt 0:00:49]} Qe7 {[%emt 0:00:13]} 8. Bg5 {[%emt 0:00:26]} Qxe2+ {[%emt 0:00:20]} 9. Bxe2 {[%emt 0:00:10]} Bg4 {[%emt 0:00:54]} 10. Bxf6 {[%emt 0:00:38]} gxf6 {[%emt 0:01:22]} 11. O-O {[%emt 0:00:11]} O-O-O {[%emt 0:00:08]} 12. Nd5 {[%emt 0:00:28]} Be7 {[%emt 0:02:07]} 13. b4 {[%emt 0:00:37]} a6 {[%emt 0:02:41]} 14. c4 {[%emt 0:02:23]} f5 {[%emt 0:00:53]} 15. b5 {[%emt 0:00:47]} axb5 {[%emt 0:00:28]} 16. cxb5 {[%emt 0:00:16]} Ne5 {[%emt 0:00:12]} 17. Nxe5 {[%emt 0:02:38]} Rde8 {[%emt 0:03:36]} 18. Bxg4 {[%emt 0:01:22]} fxg4 {[%emt 0:02:16]} 19. Nxg4 {[%emt 0:00:59]} Bg5 {[%emt 0:01:07]} 20. f4 {[%emt 0:01:15]} Bd8 {[%emt 0:00:58]} 21. a4 {[%emt 0:01:10]} h5 {[%emt 0:02:52]} 22. Ngf6 {[%emt 0:00:43]} Re2 {[%emt 0:00:37]} 23. Rf2 {[%emt 0:00:56]} Rxf2 {[%emt 0:01:12]} 24. Kxf2 {[%emt 0:00:11]} c6 {[%emt 0:00:31]} 25. Rc1 {[%emt 0:00:34]} Rh6 {[%emt 0:02:31]} 26. Ne8 {[%emt 0:01:07]} Kd7 {[%emt 0:00:29]} 27. bxc6+ {[%emt 0:00:24]} bxc6 {[%emt 0:00:23]} 28. Nb4 {[%emt 0:00:55]} c5 {[%emt 0:01:17]} 29. Nxd6 {[%emt 0:04:04]} cxb4 {[%emt 0:01:14]} 30. Nxf7 {[%emt 0:01:00]} Bb6+ {[%emt 0:00:15]} 31. Kf3 {[%emt 0:00:51]} Rf6 {[%emt 0:00:59]} 32. Ne5+ {[%emt 0:01:34]} Kd8 {[%emt 0:00:46]} 33. Nc6+ {[%emt 0:00:49]} Ke8 {[%emt 0:02:48]} 34. Nxb4 {[%emt 0:00:16]} Rf7 {[%emt 0:01:38]} 35. Rc6 {[%emt 0:02:17]} Rf5 {[%emt 0:02:00]} 36. Rc4 {[%emt 0:01:29]} Kd7 {[%emt 0:00:26]} 37. d4 {[%emt 0:01:15]} Ba5 {[%emt 0:00:31]} 38. Nc6 {[%emt 0:01:56]} Bc7 {[%emt 0:01:06]} 39. Ne5+ {[%emt 0:00:39]} Kc8 {[%emt 0:00:24]} 40. a5 {[%emt 0:00:22]} Kb8 {[%emt 0:00:50]} 41. a6 {[%emt 0:30:28]} Bd6 {[%emt 0:30:45]} 42. Ra4 {[%emt 0:01:33]} Ka8 {[%emt 0:01:00]} 43. Ke4 {[%emt 0:00:38]} Rf8 {[%emt 0:00:31]} 44. h3 {[%emt 0:02:52]} h4 {[%emt 0:00:47]} 45. Kf3 {[%emt 0:02:13]} Rf6 {[%emt 0:01:22]} 46. Kg4 {[%emt 0:01:02]} Rf8 {[%emt 0:01:10]} 47. f5 {[%emt 0:00:43]} Bc7 {[%emt 0:00:51]} 48. Rc4 {[%emt 0:01:21]} Bb8 {[%emt 0:00:25]} 49. d5 {[%emt 0:01:10]} Bxe5 {[%emt 0:00:35]} 50. Rc6 {[%emt 0:02:01]} Rg8+ {[%emt 0:01:04]} 51. Rg6 {[%emt 0:00:38]} Rd8 {[%emt 0:01:04]} 52. f6 {[%emt 0:00:36]} Rxd5 {[%emt 0:02:05]} 53. f7 {[%emt 0:00:30]} Rd4+ {[%emt 0:00:30]} 54. Kf5 {[%emt 0:01:10]} Bd6 {[%emt 0:00:41]} 55. Rxd6 {[%emt 0:00:19]} Rxd6 {[%emt 0:00:13]} 56. f8=Q+ {[%emt 0:00:13]} Ka7 {[%emt 0:00:26]} 57. Qxd6 {[%emt 0:00:17]} Ka8 {[%emt 0:00:30]} 58. Qc6+ {[%emt 0:00:28]} Ka7 {[%emt 0:00:23]} 59. Qb7# {[%emt 0:00:07]} 1-0

[Event "CZE-ch Youth G10-G12-G14 2022"]
[Site "Luhacovice"]
[Date "2022.03.15"]
[Round "5.42"]
[White "Koval, Anna"]
[Black "Dufkova, Tereza"]
[Result "1-0"]
[ECO "C54"]
[WhiteElo "1278"]
[BlackElo "1014"]
[Annotator "NA"]
[PlyCount "47"]
[EventDate "2022.03.12"]
[EventType "swiss"]
[EventCountry "CZE"]
[SourceTitle "playchess.com"]
[Source "ChessBase"]
[SourceQuality "1"]
[TimeControl "40/5400+30:1800+30"]

1. e4 {[%emt 0:00:09]} e5 {[%emt 0:00:10]} 2. Nf3 {[%emt 0:00:04]} Nc6 {[%emt 0:00:48]} 3. Bc4 {[%emt 0:00:08]} Bc5 {[%emt 0:00:15]} 4. c3 {[%emt 0:00:04]} Nf6 {[%emt 0:00:53]} 5. d4 {[%emt 0:00:07]} exd4 {[%emt 0:00:13]} 6. cxd4 {[%emt 0:00:02]} Bb4+ {[%emt 0:00:24]} 7. Nc3 {[%emt 0:00:03]} O-O {[%emt 0:00:18]} 8. Bg5 {[%emt 0:00:14]} h6 {[%emt 0:00:48]} 9. Bh4 {[%emt 0:00:04]} g5 {[%emt 0:00:25]} 10. Nxg5 {[%emt 0:00:03]} hxg5 {[%emt 0:01:40]} 11. Bxg5 {[%emt 0:00:09]} d6 {[%emt 0:00:38]} 12. O-O {[%emt 0:00:30]} Be6 {[%emt 0:03:08]} 13. d5 {[%emt 0:00:31]} Bg4 {[%emt 0:01:06]} 14. Be2 {[%emt 0:03:00]} Bxe2 {[%emt 0:00:34]} 15. Qxe2 {[%emt 0:00:19]} Ne5 {[%emt 0:01:29]} 16. f4 {[%emt 0:01:03]} Ng6 {[%emt 0:00:49]} 17. e5 {[%emt 0:00:31]} Bc5+ {[%emt 0:03:03]} 18. Kh1 {[%emt 0:00:11]} Re8 {[%emt 0:22:07]} 19. Bxf6 {[%emt 0:00:27]} Qd7 {[%emt 0:00:20]} 20. f5 {[%emt 0:00:40]} dxe5 {[%emt 0:01:10]} 21. fxg6 {[%emt 0:00:28]} Be7 {[%emt 0:01:26]} 22. gxf7+ {[%emt 0:01:07]} Kxf7 {[%emt 0:00:46]} 23. Qh5+ {[%emt 0:00:37]} Kf8 {[%emt 0:02:20]} 24. Qh8+ {[%emt 0:00:26]} 1-0